bitfinex/quotes_SOLUSD_20251218
["timestamp","ask_amount","ask_price","bid_price","bid_amount"]
[1766083140819,0.68,123.27,123.22,19.62901773]
[1766083141324,0.68,123.27,123.22,19.97901773]
[1766083141522,0.67,123.25,123.22,16.99526673]
[1766083141920,0.67,123.24,123.2,8.11657091]
[1766083142131,0.67,123.23,123.2,8.88]
[1766083142427,0.67,123.22,123.18,10.75168022]
[1766083142631,2.633751,123.22,123.17,19.63240489]
[1766083142803,0.67,123.21,123.17,8.88]
[1766083143007,0.67,123.2,123.17,8.88]
[1766083143199,2.633751,123.2,123.17,8.88]
[1766083143414,0.67,123.19,123.17,8.88]
[1766083144612,0.67,123.19,123.15,17.34999622]
[1766083144818,0.67,123.19,123.15,19.98374722]
[1766083145013,0.67,123.19,123.15,17.34999622]
[1766083145239,0.67,123.19,123.15,16.99999622]
[1766083145733,0.67,123.19,123.15,19.63374722]
[1766083146108,0.67,123.17,123.12,0.35]
[1766083146310,0.67,123.17,123.13,17.00113308]
[1766083147128,2.633751,123.17,123.13,8.88]
[1766083147335,0.67,123.19,123.13,2.983751]
[1766083147512,2.633751,123.17,123.11,17.35269543]
[1766083147710,0.67,123.16,123.11,19.98644643]
[1766083148028,0.67,123.16,123.12,8.12202049]
[1766083148934,0.67,123.16,123.13,2.633751]
[1766083149141,0.67,123.18,123.13,2.983751]
[1766083149437,0.67,123.2,123.16,0.35]
[1766083149621,0.67,123.2,123.17,11.513751]
[1766083150523,0.67,123.2,123.17,19.63259662]
[1766083151220,0.67,123.2,123.17,8.88]
[1766083151622,17.49994864,123.19,123.13,20.65275684]
[1766083151912,0.67,123.18,123.14,24.08285194]
[1766083154020,0.67,123.18,123.14,17.02057626]
[1766083154313,10.43767296,123.19,123.11,8.80994492]
[1766083154521,103.8,123.18,123.12,24.08414505]
[1766083154743,103.8,123.18,123.14,0.35]
[1766083154928,104.47,123.18,123.13,15.18342591]
[1766083155133,0.67,123.16,123.12,8.9]
[1766083155515,7.06227568,123.16,123.12,8.9]
[1766083155716,0.67,123.15,123.12,17.02204476]
[1766083156026,0.67,123.15,123.13,8.12147299]
[1766083156550,0.67,123.17,123.13,15.18374867]
[1766083157753,0.67,123.19,123.14,7.41227568]
[1766083157936,0.67,123.19,123.15,8.9]
[1766083158337,0.67,123.19,123.15,17.02015033]
[1766083158966,0.67,123.19,123.15,24.43242601]
[1766083160273,0.67,123.19,123.15,16.31227568]
[1766083161228,103.8,123.21,123.17,7.06227568]
[1766083161429,0.67,123.23,123.18,16.31227568]
[1766083161649,0.67,123.23,123.19,7.06227568]
[1766083162043,0.67,123.23,123.19,15.17947485]
[1766083163225,11.10767296,123.23,123.19,15.17947485]
[1766083163653,0.67,123.25,123.19,15.17947485]
[1766083163857,0.67,123.24,123.19,28.76105419]
[1766083164160,0.67,123.24,123.19,35.82332987]
[1766083169349,17.49994864,123.25,123.18,17.01803916]
[1766083169350,7.06227568,123.23,123.18,17.01803916]
[1766083169531,7.73227568,123.22,123.18,17.01803916]
[1766083169735,0.67,123.21,123.18,17.01803916]
[1766083170261,11.10767296,123.22,123.18,17.01803916]
[1766083170640,0.67,123.21,123.18,17.01803916]
[1766083172555,10.43767296,123.22,123.18,17.01803916]
[1766083172748,10.43767296,123.22,123.18,21.48684275]
[1766083173661,11.10767296,123.22,123.18,21.48684275]
[1766083173855,4.78880359,123.24,123.19,0.35]
[1766083174057,0.67,123.24,123.19,4.46880359]
[1766083175053,0.67,123.24,123.2,8.11688311]
[1766083176262,0.67,123.24,123.21,8.9]
[1766083177464,4.78880359,123.24,123.21,8.9]
[1766083178246,0.67,123.24,123.21,17.01621276]
[1766083179372,0.67,123.25,123.21,17.36621276]
[1766083180549,0.67,123.25,123.21,37.65677359]
[1766083181472,0.67,123.25,123.21,41.77557718]
[1766083181974,0.67,123.25,123.21,21.48501635]
[1766083182288,0.67,123.25,123.21,17.01621276]
[1766083182957,0.7,123.23,123.21,8.9]
[1766083183357,0.7,123.23,123.21,17.01621722]
[1766083183580,0.7,123.24,123.21,17.01621722]
[1766083184884,4.11880359,123.23,123.21,8.9]
[1766083185068,0.7,123.22,123.19,16.99743668]
[1766083186483,29.16158157,123.27,123.19,16.99743668]
[1766083186484,4.0923676,123.3,123.22,10.43767296]
[1766083186678,0.2,123.49,123.29,4.11880359]
[1766083186679,20.26622069,123.36,123.29,4.11880359]
[1766083186983,4.11880359,123.34,123.3,17.68994492]
[1766083187152,14.75647655,123.33,123.29,8.88]
[1766083187354,4.11880359,123.32,123.29,8.88]
[1766083187580,4.11880359,123.32,123.27,8.88]
[1766083187879,14.75647655,123.33,123.27,9.55]
[1766083188062,14.75647655,123.33,123.24,4.11880359]
[1766083188063,4.11880359,123.3,123.24,0.67]
[1766083188261,4.11880359,123.3,123.25,8.88]
[1766083188780,0.7,123.29,123.25,8.88]
[1766083188977,4.11880359,123.29,123.25,8.88]
[1766083189175,0.7,123.28,123.25,8.88]
[1766083189382,0.2,123.28,123.25,8.88]
[1766083192181,4.31880359,123.28,123.25,8.88]
[1766083192365,0.7,123.27,123.23,8.88]
[1766083192570,0.7,123.26,123.22,4.78880359]
[1766083192766,0.7,123.26,123.22,13.66880359]
[1766083193600,0.7,123.26,123.22,9.55]
[1766083193892,0.7,123.26,123.22,13.66880359]
[1766083194695,0.7,123.26,123.22,21.78386492]
[1766083194897,0.7,123.26,123.23,4.11880359]
[1766083196198,4.11880359,123.31,123.26,0.67]
[1766083196374,10.43767296,123.28,123.25,4.78880359]
[1766083196773,10.43767296,123.28,123.25,13.66880359]
[1766083197899,4.11880359,123.28,123.22,0.67]
[1766083198115,0.7,123.27,123.23,16.9947226]
[1766083198271,0.7,123.27,123.23,12.99880359]
[1766083198478,0.7,123.27,123.23,21.11342726]
[1766083199371,0.7,123.27,123.23,13.66880359]
[1766083199576,0.7,123.27,123.23,9.55]
[1766083199910,0.7,123.26,123.23,9.55]
[1766083200275,0.7,123.26,123.23,8.88]
[1766083200483,4.11880359,123.28,123.23,21.11335087]
[1766083200805,10.43767296,123.29,123.23,4.11880359]
[1766083201017,4.11880359,123.28,123.22,12.90410854]
[1766083201304,4.11880359,123.31,123.26,4.11880359]
[1766083201510,10.43767296,123.3,123.26,4.11880359]
[1766083201882,14.55647655,123.3,123.25,0.69]
[1766083202097,14.55647655,123.3,123.25,4.80880359]
[1766083202393,0.69,123.29,123.25,4.80880359]
[1766083203109,4.80880359,123.31,123.26,12.9217356]
[1766083203287,10.43767296,123.3,123.26,12.9217356]
[1766083203494,11.12767296,123.3,123.26,12.9217356]
[1766083203811,4.80880359,123.32,123.28,0.69]
[1766083203975,0.69,123.32,123.28,0.69]
[1766083204181,0.69,123.3,123.26,8.11293201]
[1766083204407,0.69,123.3,123.26,12.2317356]
[1766083204591,0.69,123.3,123.26,12.9217356]
[1766083204808,0.69,123.3,123.26,8.80293201]
[1766083204992,4.80880359,123.3,123.26,8.80293201]
[1766083205186,0.69,123.3,123.26,8.80293201]
[1766083206489,0.69,123.3,123.26,12.9217356]
[1766083207300,4.80880359,123.32,123.27,4.80880359]
[1766083207489,4.80880359,123.32,123.28,0.69]
[1766083207798,0.69,123.28,123.24,8.88]
[1766083208001,4.11880359,123.29,123.17,68.86996702]
[1766083208002,0.69,123.24,123.17,0.69]
[1766083208206,0.69,123.24,123.2,0.69]
[1766083208382,0.69,123.24,123.2,4.80880359]
[1766083209003,4.11880359,123.27,123.22,4.80880359]
[1766083209201,10.43767296,123.26,123.22,4.80880359]
[1766083209504,10.43767296,123.26,123.23,0.69]
[1766083209714,11.12767296,123.26,123.23,0.69]
[1766083209897,0.69,123.26,123.23,0.69]
[1766083211003,0.69,123.27,123.23,0.69]
[1766083211314,12.15549054,123.27,123.23,0.69]
[1766083211806,18.54941034,123.28,123.21,8.88]
[1766083211807,0.69,123.24,123.21,8.88]
[1766083211993,12.15549054,123.24,123.21,8.88]
[1766083212194,0.69,123.24,123.21,8.88]
[1766083212506,0.69,123.24,123.21,17.68611543]
[1766083212806,12.12549054,123.26,123.21,28.46160597]
[1766083213010,0.66,123.26,123.22,0.69]
[1766083213187,11.46549054,123.27,123.22,0.69]
[1766083213386,10.43767296,123.28,123.23,11.46549054]
[1766083213594,10.43767296,123.28,123.24,0.69]
[1766083213595,22.5631635,123.28,123.24,0.69]
[1766083214594,12.12549054,123.28,123.24,8.80423236]
[1766083214995,115.26549054,123.3,123.25,0.69]
[1766083215209,0.66,123.29,123.25,12.15549054]
[1766083216396,21.9031635,123.31,123.25,19.57870788]
[1766083216603,22.5631635,123.31,123.26,12.15549054]
[1766083217415,22.5631635,123.31,123.27,0.69]
[1766083217604,11.09767296,123.31,123.27,0.69]
[1766083217804,0.66,123.31,123.27,0.69]
[1766083218192,0.66,123.31,123.27,12.15549054]
[1766083218493,0.66,123.31,123.27,20.2675987]
[1766083223915,0.66,123.31,123.27,19.5775987]
[1766083224126,12.12549054,123.32,123.28,0.69]
[1766083224723,0.66,123.32,123.28,0.69]
[1766083224926,12.12549054,123.32,123.28,0.69]
[1766083225122,11.46549054,123.32,123.28,0.69]
[1766083225328,0.66,123.31,123.28,0.69]
[1766083227023,12.12549054,123.31,123.26,20.26815341]
[1766083227229,12.12549054,123.31,123.27,0.69]
[1766083228018,0.66,123.31,123.27,0.69]
[1766083228228,12.12549054,123.31,123.27,0.69]
[1766083228612,0.66,123.31,123.27,0.69]
[1766083229202,10.63767296,123.33,123.28,11.46549054]
[1766083229405,14.74887853,123.33,123.29,0.69]
[1766083229603,15.40887853,123.33,123.29,0.69]
[1766083230916,4.77120557,123.32,123.29,0.69]
[1766083231230,0.66,123.32,123.29,0.69]
[1766083231420,3.29189624,123.32,123.29,0.69]
[1766083232707,0.66,123.29,123.24,8.80392177]
[1766083232913,0.66,123.29,123.25,8.80355973]
[1766083233321,0.66,123.29,123.25,0.69]
[1766083233522,3.29189624,123.29,123.25,0.69]
[1766083234860,3.29189624,123.29,123.25,8.80339802]
[1766083235351,20.2728355,123.32,123.24,0.69]
[1766083235352,3.29189624,123.28,123.24,0.69]
[1766083235653,0.66,123.27,123.24,0.69]
[1766083238027,0.66,123.27,123.22,30.75489669]
[1766083238246,2.63189624,123.25,123.22,8.88]
[1766083238443,2.63189624,123.25,123.2,0.69]
[1766083238444,3.29189624,123.24,123.2,8.80655519]
[1766083238839,0.66,123.23,123.19,9.57]
[1766083239043,0.66,123.23,123.19,17.68744473]
[1766083239240,0.66,123.25,123.2,8.11685552]
[1766083239428,3.29189624,123.25,123.21,0.69]
[1766083239850,2.63189624,123.25,123.21,0.69]
[1766083240049,3.29189624,123.24,123.19,20.31898583]
[1766083240447,3.29189624,123.24,123.19,17.68708959]
[1766083240648,3.29189624,123.24,123.2,8.11682065]
[1766083240849,2.63189624,123.24,123.19,17.68740275]
[1766083241058,0.66,123.23,123.19,9.57]
[1766083242361,3.29189624,123.24,123.2,0.69]
[1766083242547,0.66,123.24,123.2,0.69]
[1766083243240,0.66,123.24,123.2,8.80684553]
[1766083246086,21.9495692,123.26,123.21,0.66]
[1766083246241,3.33189624,123.24,123.2,0.66]
[1766083248062,3.33189624,123.24,123.2,8.7768592]
[1766083248247,3.33189624,123.24,123.21,0.66]
[1766083250579,3.33189624,123.24,123.2,8.77687904]
[1766083251352,2.63189624,123.22,123.19,8.88]
[1766083251563,3.33189624,123.21,123.17,0.66]
[1766083251949,3.33189624,123.2,123.17,0.66]
[1766083252281,0.7,123.2,123.17,8.77882302]
[1766083252458,0.7,123.2,123.17,0.66]
[1766083252653,3.33189624,123.2,123.17,0.66]
[1766083253275,3.33189624,123.2,123.16,8.11919023]
[1766083253276,0.7,123.17,123.14,8.80994492]
[1766083253455,0.7,123.17,123.14,8.12068189]
[1766083253650,0.7,123.17,123.13,9.74]
[1766083253651,3.33189624,123.17,123.13,9.74]
[1766083254276,3.33189624,123.17,123.13,17.86118024]
[1766083254481,0.7,123.17,123.13,17.86118024]
[1766083254785,3.33189624,123.17,123.13,17.86118024]
[1766083255955,3.33189624,123.17,123.13,9.74]
[1766083256284,3.33189624,123.16,123.13,9.08]
[1766083257860,3.33189624,123.16,123.13,0.2]
[1766083258889,18.55590243,123.18,123.1,31.8398544]
[1766083258890,3.33189624,123.14,123.1,8.9]
[1766083259184,10.43767296,123.15,123.1,8.9]
[1766083259185,0.7,123.12,123.1,8.9]
[1766083259481,0.7,123.12,123.09,8.1241088]
[1766083259482,3.33189624,123.12,123.09,8.1241088]
[1766083260266,0.7,123.11,123.08,8.1246394]
[1766083260884,0.7,123.11,123.08,8.7846394]
[1766083261181,0.7,123.11,123.08,0.66]
[1766083262076,2.63189624,123.12,123.07,0.2]
[1766083262077,3.31189624,123.1,123.07,0.2]
[1766083262379,0.68,123.11,123.07,8.32519888]
[1766083262585,13.7495692,123.12,123.08,0.68]
[1766083263283,11.11767296,123.12,123.08,0.68]
[1766083263455,13.7495692,123.12,123.08,0.68]
[1766083264383,10.43767296,123.13,123.1,0.68]
[1766083265596,8.1202328,123.15,123.07,17.90508313]
[1766083265597,0.68,123.11,123.07,17.90508313]
[1766083265781,0.68,123.11,123.07,17.22508313]
[1766083266105,13.0695692,123.12,123.08,8.80477155]
[1766083266291,3.31189624,123.12,123.08,8.80477155]
[1766083266785,0.68,123.12,123.08,8.80477155]
[1766083268279,10.43767296,123.13,123.09,0.68]
[1766083268590,13.7495692,123.13,123.09,0.68]
[1766083268974,2.63189624,123.14,123.09,0.68]
[1766083269166,3.31189624,123.15,123.1,2.63189624]
[1766083269374,3.31189624,123.15,123.11,0.68]
[1766083270009,2.63189624,123.17,123.13,0.68]
[1766083270177,3.31189624,123.18,123.13,0.68]
[1766083270493,3.30189624,123.21,123.16,0.69]
[1766083270697,0.67,123.2,123.16,0.69]
[1766083270901,3.30189624,123.2,123.16,0.69]
[1766083271068,2.63189624,123.18,123.14,0.69]
[1766083271275,3.30189624,123.17,123.13,8.9]
[1766083271994,0.67,123.17,123.13,8.9]
[1766083272170,3.30189624,123.17,123.13,8.9]
[1766083272893,3.30189624,123.17,123.13,17.691433]
[1766083273289,0.72,123.22,123.16,0.67]
[1766083273496,0.72,123.21,123.17,0.67]
[1766083273697,12.25189624,123.23,123.18,0.67]
[1766083274401,3.35189624,123.22,123.18,0.67]
[1766083274603,2.63189624,123.2,123.16,8.9]
[1766083274803,13.0695692,123.2,123.16,9.57]
[1766083275100,10.43767296,123.2,123.17,8.78885464]
[1766083276901,13.0695692,123.2,123.16,8.9]
[1766083277203,3.35189624,123.17,123.13,17.69148096]
[1766083277386,3.35189624,123.19,123.14,8.79080864]
[1766083278000,0.72,123.18,123.14,8.79080864]
[1766083278500,10.43767296,123.18,123.14,8.79080864]
[1766083278697,10.43767296,123.18,123.14,11.42270488]
[1766083278887,11.15767296,123.19,123.14,11.42270488]
[1766083279088,13.7895692,123.19,123.14,8.79080864]
[1766083279597,0.72,123.21,123.15,0.67]
[1766083279775,2.63189624,123.23,123.18,8.80994492]
[1766083279978,2.63189624,123.23,123.19,0.67]
[1766083280376,0.72,123.23,123.19,0.67]
[1766083280589,3.35189624,123.23,123.19,0.67]
[1766083280774,0.72,123.21,123.16,18.37994492]
[1766083280979,0.72,123.21,123.17,0.67]
[1766083281377,11.15767296,123.24,123.19,8.11753146]
[1766083281629,13.7895692,123.24,123.2,0.67]
[1766083282493,3.35189624,123.23,123.18,8.78814388]
[1766083283394,13.7895692,123.24,123.19,0.67]
[1766083283630,11.15767296,123.24,123.19,0.67]
[1766083283911,13.0695692,123.24,123.19,0.67]
[1766083284117,11.15767296,123.24,123.2,0.67]
[1766083284798,11.15767296,123.24,123.2,8.7865604]
[1766083285209,2.63189624,123.25,123.21,0.67]
[1766083285397,9.62,123.28,123.22,0.67]
[1766083285707,0.72,123.26,123.22,0.67]
[1766083286089,3.35189624,123.26,123.22,0.67]
[1766083288117,0.72,123.29,123.23,2.63189624]
[1766083288287,3.35189624,123.29,123.24,0.67]
[1766083289418,8.9,123.3,123.24,0.67]
[1766083289606,2.63189624,123.29,123.25,0.67]
[1766083289811,0.72,123.25,123.15,24.38330556]
[1766083290001,3.35189624,123.21,123.16,0.67]
[1766083290318,3.35189624,123.21,123.17,0.67]
[1766083290999,3.35189624,123.21,123.15,9.57]
[1766083291000,2.63189624,123.19,123.15,9.57]
[1766083291305,2.63189624,123.19,123.15,0.67]
[1766083291512,7.06512142,123.19,123.15,0.67]
[1766083291922,7.06512142,123.17,123.13,8.7914976]
[1766083293393,11.48457827,123.17,123.13,8.7914976]
[1766083296908,0.72,123.18,123.13,8.7914976]
[1766083297107,11.48457827,123.17,123.13,8.7914976]
[1766083297628,0.72,123.18,123.13,8.1214976]
[1766083297798,12.20457827,123.18,123.14,0.67]
[1766083298516,11.48457827,123.2,123.15,0.67]
[1766083299224,11.48457827,123.19,123.16,0.67]
[1766083299715,11.48457827,123.18,123.14,0.67]
[1766083299938,11.48457827,123.17,123.14,0.67]
[1766083300800,28.40683455,123.21,123.12,8.9]
[1766083300801,11.48457827,123.16,123.12,17.69185511]
[1766083301717,0.72,123.17,123.12,17.69185511]
[1766083302230,11.48457827,123.17,123.13,0.67]
[1766083304832,11.48457827,123.17,123.13,8.79147896]
[1766083305036,11.48457827,123.17,123.13,0.67]
[1766083305223,12.20457827,123.17,123.13,0.67]
[1766083305739,12.20457827,123.17,123.13,8.79147292]
[1766083306233,0.72,123.13,123.09,8.83381509]
[1766083306432,10.43767296,123.15,123.09,8.80994492]
[1766083306743,11.48457827,123.16,123.13,0.71]
[1766083307445,11.48457827,123.16,123.13,8.83136147]
[1766083310151,10.43767296,123.16,123.13,8.83136147]
[1766083311123,21.92225123,123.16,123.13,8.83136147]
[1766083311547,11.48457827,123.18,123.14,0.71]
[1766083311749,10.43767296,123.18,123.14,0.71]
[1766083311952,11.48457827,123.19,123.14,0.71]
[1766083312242,11.48457827,123.2,123.15,0.71]
[1766083312542,12.20457827,123.21,123.15,0.71]
[1766083312741,0.72,123.23,123.17,0.71]
[1766083313043,12.48457826,123.3,123.19,0.71]
[1766083313044,11.48457827,123.24,123.19,0.71]
[1766083313233,11.48457827,123.25,123.21,0.71]
[1766083314230,11.48457827,123.25,123.21,8.82614653]
[1766083315111,11.48457827,123.25,123.21,0.71]
[1766083315927,12.20457827,123.25,123.21,0.71]
[1766083316820,10.43767296,123.26,123.22,0.71]
[1766083317021,11.48457827,123.25,123.22,0.71]
[1766083317836,11.48457827,123.25,123.2,17.0165766]
[1766083318018,11.48457827,123.25,123.21,0.71]
[1766083319220,22.64225123,123.26,123.22,0.71]
[1766083319941,11.15767296,123.26,123.22,0.71]
[1766083320146,22.64225123,123.26,123.22,0.71]
[1766083320337,11.48457827,123.25,123.22,0.71]
[1766083320726,8.11114757,123.29,123.22,8.11543962]
[1766083320925,17.73059444,123.3,123.23,8.9]
[1766083321251,12.16457827,123.29,123.24,0.65]
[1766083321461,0.88,123.33,123.25,11.48457827]
[1766083321648,0.88,123.33,123.27,0.65]
[1766083321649,0.68,123.32,123.27,0.65]
[1766083321827,12.16457827,123.32,123.28,8.11161583]
[1766083322022,0.68,123.32,123.28,8.76161583]
[1766083322217,12.36457827,123.33,123.29,0.65]
[1766083322657,12.16457827,123.32,123.27,8.76198756]
[1766083323159,11.48457827,123.31,123.27,0.65]
[1766083323348,0.68,123.28,123.23,0.65]
[1766083323530,12.16457827,123.28,123.24,9.55]
[1766083323925,12.16457827,123.28,123.24,0.65]
[1766083324127,0.68,123.28,123.24,8.76424562]
[1766083324446,8.11080532,123.3,123.25,0.65]
[1766083324447,22.60225123,123.3,123.25,0.65]
[1766083324644,11.11767296,123.3,123.26,0.65]
[1766083325045,10.43767296,123.3,123.26,0.65]
[1766083325956,10.43767296,123.3,123.26,8.76271877]
[1766083326462,10.43767296,123.3,123.26,0.65]
[1766083326760,10.43767296,123.3,123.26,8.76280914]
[1766083327459,10.43767296,123.3,123.26,17.66280914]
[1766083328858,22.60225123,123.3,123.26,9.55]
[1766083329046,10.43767296,123.3,123.27,0.65]
[1766083329354,21.92225123,123.3,123.27,0.65]
[1766083329533,21.92225123,123.3,123.26,8.9]
[1766083329534,22.60225123,123.3,123.26,8.9]
[1766083330258,22.60225123,123.3,123.26,9.55]
[1766083330939,12.16457827,123.28,123.25,8.88]
[1766083331329,0.68,123.28,123.25,8.88]
[1766083331530,12.16457827,123.28,123.25,8.88]
[1766083332158,12.16457827,123.27,123.25,8.88]
[1766083332345,12.16457827,123.26,123.22,26.4551398]
[1766083332531,12.16457827,123.26,123.22,26.4549338]
[1766083332942,12.16457827,123.26,123.23,8.11482854]
[1766083333139,11.48457827,123.27,123.23,8.11482854]
[1766083333759,12.08457827,123.27,123.22,26.52543664]
[1766083333962,12.08457827,123.27,123.23,8.11486618]
[1766083335070,11.48457827,123.25,123.22,9.6]
[1766083335269,11.48457827,123.25,123.22,8.88]
[1766083337159,11.48457827,123.24,123.22,8.88]
[1766083337537,11.48457827,123.23,123.22,8.88]
[1766083337744,12.08457827,123.23,123.19,0.72]
[1766083337950,11.48457827,123.22,123.19,0.72]
[1766083338350,12.08457827,123.22,123.18,8.88]
[1766083338957,12.08457827,123.22,123.18,16.99819081]
[1766083339159,20.28397565,123.25,123.19,8.80994492]
[1766083339160,21.92225123,123.25,123.19,8.80994492]
[1766083339468,11.48457827,123.26,123.21,0.72]
[1766083339667,11.48457827,123.26,123.22,0.72]
[1766083340254,11.48457827,123.25,123.21,8.88]
[1766083340467,12.08457827,123.26,123.22,0.72]
[1766083341166,11.48457827,123.27,123.23,0.72]
[1766083341366,12.08457827,123.27,123.23,0.72]
[1766083341568,11.48457827,123.26,123.23,0.72]
[1766083341774,11.48457827,123.26,123.22,8.83551351]
[1766083342475,12.08457827,123.26,123.22,8.83551351]
[1766083342780,21.92225123,123.25,123.22,0.72]
[1766083343879,0.6,123.23,123.21,8.88]
[1766083344057,11.48457827,123.24,123.21,8.88]
[1766083344254,12.08457827,123.24,123.21,8.88]
[1766083344883,22.52225123,123.24,123.21,16.99621028]
[1766083346062,22.52225123,123.24,123.21,8.88]
[1766083347160,11.48457827,123.23,123.21,8.88]
[1766083347982,11.48457827,123.23,123.2,0.72]
[1766083348178,12.08457827,123.22,123.17,17.71835804]
[1766083348488,12.08457827,123.22,123.18,8.83806799]
[1766083349461,11.48457827,123.22,123.18,8.11806799]
[1766083349678,11.48457827,123.22,123.19,0.72]
[1766083350181,12.08457827,123.23,123.19,0.72]
[1766083350385,21.92225123,123.24,123.19,0.72]
[1766083350680,10.43767296,123.24,123.19,0.72]
[1766083350885,21.92225123,123.24,123.19,0.72]
[1766083351090,22.52225123,123.24,123.19,0.72]
[1766083351295,11.48457827,123.23,123.19,0.72]
[1766083351864,11.48457827,123.22,123.19,0.72]
[1766083352658,12.08457827,123.23,123.19,0.72]
[1766083352874,12.08457827,123.23,123.19,8.8375305]
[1766083353264,12.08457827,123.23,123.19,0.72]
[1766083353474,3.23607969,123.23,123.19,0.72]
[1766083353696,3.23607969,123.23,123.19,8.83752392]
[1766083354556,0.6,123.23,123.19,8.83752392]
[1766083355089,13.07375265,123.24,123.19,0.72]
[1766083355386,124.08277523,123.26,123.21,0.72]
[1766083355387,0.6,123.26,123.21,0.72]
[1766083355763,2.63607969,123.25,123.21,0.72]
[1766083355967,10.43767296,123.24,123.21,0.72]
[1766083357084,11.51607969,123.27,123.23,0.72]
[1766083357963,9.48,123.27,123.23,0.72]
[1766083358160,12.11607969,123.27,123.23,0.72]
[1766083358884,2.63607969,123.26,123.23,0.72]
[1766083359193,9.48,123.27,123.23,0.72]
[1766083359375,2.63607969,123.26,123.23,0.72]
[1766083362090,9.48,123.27,123.23,8.83482225]
[1766083362393,12.11607969,123.27,123.23,0.72]
[1766083365498,3.23607969,123.26,123.22,8.82525021]
[1766083366795,2.63607969,123.26,123.22,0.71]
[1766083367600,11.51607969,123.27,123.22,0.71]
[1766083367779,12.11607969,123.27,123.22,0.71]
[1766083368711,122.34890285,123.29,123.23,0.71]
[1766083368712,3.23607969,123.28,123.23,0.71]
[1766083368899,3.23607969,123.28,123.24,8.82424862]
[1766083369801,2.63607969,123.27,123.24,0.71]
[1766083370101,0.6,123.24,123.21,0.71]
[1766083370298,3.23607969,123.24,123.21,0.71]
[1766083370594,3.23607969,123.24,123.2,9.61]
[1766083370787,3.23607969,123.23,123.19,0.71]
[1766083371103,0.6,123.23,123.19,8.82751255]
[1766083371299,16.99358972,123.26,123.19,8.11751255]
[1766083371498,3.23607969,123.24,123.2,0.71]
[1766083372000,2.63607969,123.24,123.2,0.71]
[1766083372205,0.6,123.25,123.2,0.71]
[1766083372390,2.63607969,123.24,123.2,0.71]
[1766083372584,2.63607969,123.24,123.21,0.71]
[1766083375403,3.23607969,123.23,123.19,8.82736813]
[1766083375787,3.23607969,123.22,123.18,8.88]
[1766083375990,2.63607969,123.21,123.18,8.88]
[1766083376212,3.23607969,123.21,123.17,0.71]
[1766083376509,2.63607969,123.2,123.17,0.71]
[1766083376692,3.23607969,123.2,123.16,0.71]
[1766083377011,2.63607969,123.2,123.16,0.71]
[1766083377912,2.63607969,123.2,123.16,8.82951273]
[1766083378304,3.23607969,123.21,123.16,8.82951273]
[1766083379596,3.23607969,123.21,123.17,0.71]
[1766083379982,11.35236389,123.21,123.16,0.71]
[1766083380185,3.23607969,123.2,123.16,0.71]
[1766083381611,13.07375265,123.22,123.19,0.67]
[1766083381921,13.67375265,123.22,123.19,0.67]
[1766083382089,0.6,123.19,123.15,9.55]
[1766083382286,3.23607969,123.19,123.15,0.67]
[1766083382484,10.43767296,123.22,123.16,0.67]
[1766083382686,19.15325639,123.22,123.18,0.67]
[1766083382890,2.63607969,123.21,123.18,0.67]
[1766083383907,21.78933608,123.22,123.18,0.67]
[1766083384693,10.7523075,123.21,123.18,0.67]
[1766083384894,2.63607969,123.2,123.18,0.67]
[1766083385202,10.7523075,123.21,123.18,0.67]
[1766083385817,2.63607969,123.21,123.18,0.67]
[1766083386002,3.23607969,123.21,123.18,0.67]
[1766083386318,2.63607969,123.2,123.14,19.65629023]